[Event "1er Tournoi de GM du Barreau de Paris"]
[Site "Paris, France"]
[Date "2019.12.16"]
[Round "2.2"]
[White "GULIYEV, Namig"]
[Black "LAMARD, Guillaume"]
[Result "1/2-1/2"]
[TimeControl "1h30+30s\cp"]
[WhiteTitle "GM"]
[BlackTitle "FM"]
[WhiteElo "2548"]
[BlackElo "2452"]

1. e4 {[%clk 01:30:56]} {[%emt 00:00:04]} c5 {[%clk 01:30:57]} {[%emt
00:00:03]} 2. Nf3 {[%clk 01:31:19]} {[%emt 00:00:06]} d6 {[%clk 01:31:24]}
{[%emt 00:00:03]} 3. Bb5+ {[%clk 01:31:25]} {[%emt 00:00:25]} Bd7 {[%clk
01:31:50]} {[%emt 00:00:04]} 4. Bxd7+ {[%clk 01:31:43]} {[%emt 00:00:11]} Qxd7
{[%clk 01:32:17]} {[%emt 00:00:04]} 5. O-O {[%clk 01:31:59]} {[%emt 00:00:13]}
Nc6 {[%clk 01:32:10]} {[%emt 00:00:37]} 6. c3 {[%clk 01:30:56]} {[%emt
00:01:33]} Nf6 {[%clk 01:32:32]} {[%emt 00:00:08]} 7. Qe2 {[%clk 01:31:20]}
{[%emt 00:00:06]} e6 {[%clk 01:32:38]} {[%emt 00:00:25]} 8. d4 {[%clk
01:28:21]} {[%emt 00:03:28]} cxd4 {[%clk 01:33:04]} {[%emt 00:00:05]} 9. cxd4
{[%clk 01:28:46]} {[%emt 00:00:04]} d5 {[%clk 01:33:31]} {[%emt 00:00:03]} 10.
e5 {[%clk 01:29:06]} {[%emt 00:00:10]} Ne4 {[%clk 01:33:43]} {[%emt 00:00:19]}
11. Be3 {[%clk 01:24:18]} {[%emt 00:05:18]} Be7 {[%clk 01:34:08]} {[%emt
00:00:04]} 12. Ne1 {[%clk 01:24:41]} {[%emt 00:00:07]} f6 {[%clk 01:30:22]}
{[%emt 00:04:16]} 13. f3 {[%clk 01:24:46]} {[%emt 00:00:25]} Ng5 {[%clk
01:30:47]} {[%emt 00:00:06]} 14. Nd3 {[%clk 01:23:43]} {[%emt 00:01:33]} O-O
{[%clk 01:24:24]} {[%emt 00:06:53]} 15. Nd2 {[%clk 01:22:35]} {[%emt 00:01:38]}
b6 {[%clk 01:20:09]} {[%emt 00:04:46]} 16. Rae1 {[%clk 01:19:32]} {[%emt
00:03:32]} Rac8 {[%clk 01:15:20]} {[%emt 00:05:19]} 17. exf6 {[%clk 01:13:33]}
{[%emt 00:06:29]} Bxf6 {[%clk 01:15:31]} {[%emt 00:00:19]} 18. Ne5 {[%clk
01:11:54]} {[%emt 00:02:09]} Qe7 {[%clk 01:06:36]} {[%emt 00:09:25]} 19. f4
{[%clk 01:08:59]} {[%emt 00:03:24]} Bxe5 {[%clk 00:56:06]} {[%emt 00:11:01]} 20.
dxe5 {[%clk 01:08:44]} {[%emt 00:00:45]} Nf7 {[%clk 00:56:32]} {[%emt
00:00:04]} 21. Nf3 {[%clk 01:07:14]} {[%emt 00:02:00]} Nh6 {[%clk 00:56:55]}
{[%emt 00:00:07]} 22. h3 {[%clk 01:07:02]} {[%emt 00:00:42]} Nf5 {[%clk
00:53:03]} {[%emt 00:04:23]} 23. Bf2 {[%clk 01:06:53]} {[%emt 00:00:38]} Qb4
{[%clk 00:53:25]} {[%emt 00:00:08]} 24. Ng5 {[%clk 01:00:50]} {[%emt 00:06:33]}
Rce8 {[%clk 00:48:33]} {[%emt 00:05:23]} 25. g3 {[%clk 00:55:31]} {[%emt
00:05:48]} h6 {[%clk 00:48:59]} {[%emt 00:00:04]} 26. Nf3 {[%clk 00:55:55]}
{[%emt 00:00:06]} Rc8 {[%clk 00:49:27]} {[%emt 00:00:03]} 27. Rd1 {[%clk
00:52:42]} {[%emt 00:03:43]} Qe4 {[%clk 00:44:52]} {[%emt 00:05:05]} 28. Rfe1
{[%clk 00:52:40]} {[%emt 00:00:31]} Qxe2 {[%clk 00:45:09]} {[%emt 00:00:14]} 29.
Rxe2 {[%clk 00:53:05]} {[%emt 00:00:05]} g5 {[%clk 00:44:56]} {[%emt 00:00:43]}
30. fxg5 {[%clk 00:52:33]} {[%emt 00:01:02]} Nxg3 {[%clk 00:43:54]} {[%emt
00:01:33]} 31. Bxg3 {[%clk 00:52:56]} {[%emt 00:00:06]} Rxf3 {[%clk 00:44:20]}
{[%emt 00:00:04]} 32. Kg2 {[%clk 00:53:20]} {[%emt 00:00:05]} Rff8 {[%clk
00:43:27]} {[%emt 00:01:23]} 33. gxh6 {[%clk 00:53:31]} {[%emt 00:00:19]} Ne7
{[%clk 00:43:39]} {[%emt 00:00:18]} 34. Rd4 {[%clk 00:47:21]} {[%emt 00:06:40]}
Kh7 {[%clk 00:41:42]} {[%emt 00:02:28]} 35. Rg4 {[%clk 00:47:05]} {[%emt
00:00:45]} Nf5 {[%clk 00:42:02]} {[%emt 00:00:10]} 36. Bf4 {[%clk 00:47:05]}
{[%emt 00:00:30]} Rc4 {[%clk 00:40:08]} {[%emt 00:02:24]} 37. b3 {[%clk
00:42:44]} {[%emt 00:04:50]} 1/2-1/2

[Event "1er Tournoi de GM du Barreau de Paris"]
[Site "Paris, France"]
[Date "2019.12.16"]
[Round "2.3"]
[White "RAKOTOMAHARO, Fy Antenaina"]
[Black "SOCHACKI, Wojtek"]
[Result "1-0"]
[TimeControl "1h30+30s\cp"]
[WhiteTitle "IM"]
[BlackTitle "IM"]
[WhiteElo "2438"]
[BlackElo "2320"]

1. e4 {[%clk 01:30:57]} {[%emt 00:00:02]} e5 {[%clk 01:30:57]} {[%emt
00:00:04]} 2. Nf3 {[%clk 01:31:16]} {[%emt 00:00:10]} Nc6 {[%clk 01:31:14]}
{[%emt 00:00:04]} 3. Bc4 {[%clk 01:31:09]} {[%emt 00:00:46]} Nf6 {[%clk
01:29:11]} {[%emt 00:02:34]} 4. d3 {[%clk 01:31:32]} {[%emt 00:00:07]} Be7
{[%clk 01:27:59]} {[%emt 00:01:41]} 5. O-O {[%clk 01:31:42]} {[%emt 00:00:21]}
O-O {[%clk 01:28:25]} {[%emt 00:00:04]} 6. Re1 {[%clk 01:30:47]} {[%emt
00:01:25]} d6 {[%clk 01:27:47]} {[%emt 00:01:08]} 7. a4 {[%clk 01:30:00]}
{[%emt 00:01:17]} Be6 {[%clk 01:25:17]} {[%emt 00:02:59]} 8. Nbd2 {[%clk
01:05:47]} {[%emt 00:24:44]} Qd7 {[%clk 01:18:58]} {[%emt 00:06:49]} 9. c3
{[%clk 01:05:51]} {[%emt 00:00:26]} a6 {[%clk 01:13:25]} {[%emt 00:06:02]} 10.
Bxe6 {[%clk 00:55:44]} {[%emt 00:10:36]} fxe6 {[%clk 01:11:00]} {[%emt
00:02:55]} 11. b4 {[%clk 00:54:36]} {[%emt 00:01:39]} Nh5 {[%clk 00:47:54]}
{[%emt 00:23:36]} 12. Nf1 {[%clk 00:50:54]} {[%emt 00:04:12]} Nf4 {[%clk
00:43:04]} {[%emt 00:05:20]} 13. Ra2 {[%clk 00:24:29]} {[%emt 00:26:56]} Rf6
{[%clk 00:41:02]} {[%emt 00:02:32]} 14. g3 {[%clk 00:22:39]} {[%emt 00:02:19]}
Nh5 {[%clk 00:29:27]} {[%emt 00:12:05]} 15. Ng5 {[%clk 00:13:45]} {[%emt
00:09:24]} Qe8 {[%clk 00:28:36]} {[%emt 00:01:21]} 16. d4 {[%clk 00:14:07]}
{[%emt 00:00:09]} h6 {[%clk 00:14:01]} {[%emt 00:15:05]} 17. Nxe6 {[%clk
00:07:21]} {[%emt 00:07:15]} Rxe6 {[%clk 00:14:17]} {[%emt 00:00:14]} 18. d5
{[%clk 00:07:48]} {[%emt 00:00:03]} Rf6 {[%clk 00:14:44]} {[%emt 00:00:04]} 19.
dxc6 {[%clk 00:08:14]} {[%emt 00:00:04]} bxc6 {[%clk 00:15:08]} {[%emt
00:00:06]} 20. Qb3+ {[%clk 00:07:48]} {[%emt 00:00:55]} Kh7 {[%clk 00:14:14]}
{[%emt 00:01:23]} 21. Ne3 {[%clk 00:08:04]} {[%emt 00:00:14]} Qd7 {[%clk
00:13:10]} {[%emt 00:01:34]} 22. Qd1 {[%clk 00:06:45]} {[%emt 00:01:50]} Qe8
{[%clk 00:10:17]} {[%emt 00:03:23]} 23. Nf5 {[%clk 00:05:59]} {[%emt 00:01:16]}
Bf8 {[%clk 00:10:29]} {[%emt 00:00:18]} 24. c4 {[%clk 00:06:18]} {[%emt
00:00:11]} Qf7 {[%clk 00:09:59]} {[%emt 00:00:59]} 25. Ne3 {[%clk 00:02:50]}
{[%emt 00:03:59]} Be7 {[%clk 00:07:24]} {[%emt 00:03:05]} 26. Nf5 {[%clk
00:01:35]} {[%emt 00:01:45]} Bf8 {[%clk 00:06:31]} {[%emt 00:01:23]} 27. Ne3
{[%clk 00:01:42]} {[%emt 00:00:23]} Kh8 {[%clk 00:04:36]} {[%emt 00:02:26]} 28.
Rc2 {[%clk 00:01:17]} {[%emt 00:00:54]} Be7 {[%clk 00:04:47]} {[%emt 00:00:19]}
29. Nf5 {[%clk 00:01:19]} {[%emt 00:00:28]} Bf8 {[%clk 00:03:40]} {[%emt
00:01:38]} 30. Bb2 {[%clk 00:01:27]} {[%emt 00:00:21]} Re8 {[%clk 00:02:13]}
{[%emt 00:01:57]} 31. Ne3 {[%clk 00:01:20]} {[%emt 00:00:37]} Be7 {[%clk
00:01:44]} {[%emt 00:00:59]} 32. c5 {[%clk 00:01:16]} {[%emt 00:00:35]} dxc5
{[%clk 00:00:35]} {[%emt 00:01:40]} 33. Ng4 {[%clk 00:01:15]} {[%emt 00:00:30]}
Nf4 {[%clk 00:00:40]} {[%emt 00:00:25]} 34. gxf4 {[%clk 00:01:24]} {[%emt
00:00:21]} Rxf4 {[%clk 00:00:46]} {[%emt 00:00:23]} 35. Nxe5 {[%clk 00:01:43]}
{[%emt 00:00:11]} Qe6 {[%clk 00:00:55]} {[%emt 00:00:21]} 36. Qh5 {[%clk
00:01:35]} {[%emt 00:00:38]} 1-0

[Event "1er Tournoi de GM du Barreau de Paris"]
[Site "Paris, France"]
[Date "2019.12.16"]
[Round "2.4"]
[White "DI NICOLANTONIO, Lucas"]
[Black "DAVID, Alberto"]
[Result "0-1"]
[TimeControl "1h30+30s\cp"]
[WhiteTitle "IM"]
[BlackTitle "GM"]
[WhiteElo "2408"]
[BlackElo "2545"]

1. e4 {[%clk 01:30:56]} {[%emt 00:00:03]} c6 {[%clk 01:30:41]} {[%emt
00:00:20]} 2. d4 {[%clk 01:30:57]} {[%emt 00:00:28]} d5 {[%clk 01:31:04]}
{[%emt 00:00:07]} 3. f3 {[%clk 01:31:01]} {[%emt 00:00:26]} e6 {[%clk
01:26:47]} {[%emt 00:04:47]} 4. Nc3 {[%clk 01:31:04]} {[%emt 00:00:27]} Bb4
{[%clk 01:26:24]} {[%emt 00:00:54]} 5. a3 {[%clk 01:31:01]} {[%emt 00:00:33]}
Ba5 {[%clk 01:04:50]} {[%emt 00:22:05]} 6. Be3 {[%clk 01:05:24]} {[%emt
00:26:06]} Ne7 {[%clk 01:00:16]} {[%emt 00:05:05]} 7. Qd2 {[%clk 00:52:09]}
{[%emt 00:13:45]} O-O {[%clk 00:57:07]} {[%emt 00:03:38]} 8. b4 {[%clk
00:45:36]} {[%emt 00:07:03]} Bc7 {[%clk 00:55:22]} {[%emt 00:02:15]} 9. e5
{[%clk 00:43:51]} {[%emt 00:02:14]} c5 {[%clk 00:39:59]} {[%emt 00:15:54]} 10.
bxc5 {[%clk 00:42:41]} {[%emt 00:01:40]} Ba5 {[%clk 00:40:23]} {[%emt
00:00:06]} 11. Bd3 {[%clk 00:32:28]} {[%emt 00:10:42]} Nd7 {[%clk 00:39:33]}
{[%emt 00:01:20]} 12. Nge2 {[%clk 00:29:37]} {[%emt 00:03:20]} b6 {[%clk
00:39:58]} {[%emt 00:00:06]} 13. c6 {[%clk 00:27:02]} {[%emt 00:03:05]} Nb8
{[%clk 00:35:48]} {[%emt 00:04:40]} 14. O-O {[%clk 00:26:53]} {[%emt 00:00:39]}
Ba6 {[%clk 00:20:56]} {[%emt 00:15:22]} 15. Bg5 {[%clk 00:08:47]} {[%emt
00:18:35]} Bxd3 {[%clk 00:14:03]} {[%emt 00:07:24]} 16. Qxd3 {[%clk 00:09:05]}
{[%emt 00:00:12]} Bxc3 {[%clk 00:14:28]} {[%emt 00:00:06]} 17. Qxc3 {[%clk
00:09:03]} {[%emt 00:00:32]} Nbxc6 {[%clk 00:14:53]} {[%emt 00:00:05]} 18. Bxe7
{[%clk 00:05:41]} {[%emt 00:03:52]} Nxe7 {[%clk 00:15:01]} {[%emt 00:00:22]} 19.
f4 {[%clk 00:05:08]} {[%emt 00:01:03]} Rc8 {[%clk 00:14:25]} {[%emt 00:01:07]}
20. Qd2 {[%clk 00:05:10]} {[%emt 00:00:28]} Qd7 {[%clk 00:08:21]} {[%emt
00:06:34]} 21. c3 {[%clk 00:05:18]} {[%emt 00:00:22]} Rc7 {[%clk 00:07:22]}
{[%emt 00:01:30]} 22. Rf3 {[%clk 00:05:10]} {[%emt 00:00:37]} Qa4 {[%clk
00:06:56]} {[%emt 00:00:56]} 23. g4 {[%clk 00:04:42]} {[%emt 00:00:58]} f5
{[%clk 00:06:26]} {[%emt 00:01:01]} 24. exf6 {[%clk 00:05:00]} {[%emt
00:00:11]} Rxf6 {[%clk 00:06:52]} {[%emt 00:00:04]} 25. Kh1 {[%clk 00:03:01]}
{[%emt 00:02:29]} Nc8 {[%clk 00:05:04]} {[%emt 00:02:18]} 26. Ng3 {[%clk
00:03:00]} {[%emt 00:00:31]} Nd6 {[%clk 00:05:22]} {[%emt 00:00:12]} 27. Qe2
{[%clk 00:02:06]} {[%emt 00:01:23]} Qd7 {[%clk 00:02:02]} {[%emt 00:03:50]} 28.
Re1 {[%clk 00:02:15]} {[%emt 00:00:22]} Nb5 {[%clk 00:02:03]} {[%emt 00:00:29]}
29. Qd2 {[%clk 00:01:22]} {[%emt 00:01:23]} Nxa3 {[%clk 00:01:31]} {[%emt
00:01:03]} 30. f5 {[%clk 00:00:48]} {[%emt 00:01:04]} Nc4 {[%clk 00:01:58]}
{[%emt 00:00:03]} 31. Qe2 {[%clk 00:00:49]} {[%emt 00:00:28]} exf5 {[%clk
00:01:55]} {[%emt 00:00:33]} 32. Nxf5 {[%clk 00:01:11]} {[%emt 00:00:07]} Nd6
{[%clk 00:01:27]} {[%emt 00:00:58]} 33. Nxd6 {[%clk 00:01:22]} {[%emt
00:00:19]} Qxd6 {[%clk 00:01:45]} {[%emt 00:00:12]} 34. Qe8+ {[%clk 00:01:30]}
{[%emt 00:00:21]} Rf8 {[%clk 00:00:47]} {[%emt 00:01:29]} 35. Re5 {[%clk
00:00:35]} {[%emt 00:01:25]} h6 {[%clk 00:00:39]} {[%emt 00:00:39]} 36. Rxf8+
{[%clk 00:00:40]} {[%emt 00:00:24]} Qxf8 {[%clk 00:01:05]} {[%emt 00:00:04]} 37.
Qg6 {[%clk 00:00:38]} {[%emt 00:00:31]} Qf1# {[%emt 00:00:05]} 0-1

[Event "1er Tournoi de GM du Barreau de Paris"]
[Site "Paris, France"]
[Date "2019.12.16"]
[Round "2.5"]
[White "MAURIZZI, Marc Andria"]
[Black "LOISEAU, Quentin"]
[Result "1-0"]
[TimeControl "1h30+30s\cp"]
[WhiteTitle "IM"]
[BlackTitle "IM"]
[WhiteElo "2404"]
[BlackElo "2470"]

1. e4 {[%clk 01:30:57]} {[%emt 00:00:03]} c5 {[%clk 01:30:40]} {[%emt
00:00:20]} 2. Nf3 {[%clk 01:31:20]} {[%emt 00:00:07]} d6 {[%clk 01:31:06]}
{[%emt 00:00:04]} 3. d4 {[%clk 01:31:42]} {[%emt 00:00:08]} cxd4 {[%clk
01:31:30]} {[%emt 00:00:06]} 4. Nxd4 {[%clk 01:32:08]} {[%emt 00:00:04]} Nf6
{[%clk 01:31:54]} {[%emt 00:00:05]} 5. Nc3 {[%clk 01:32:36]} {[%emt 00:00:03]}
a6 {[%clk 01:31:33]} {[%emt 00:00:51]} 6. h4 {[%clk 01:25:40]} {[%emt
00:07:25]} e5 {[%clk 01:30:27]} {[%emt 00:01:36]} 7. Nb3 {[%clk 01:26:00]}
{[%emt 00:00:11]} Be6 {[%clk 01:24:59]} {[%emt 00:05:56]} 8. Bg5 {[%clk
01:25:11]} {[%emt 00:01:18]} Be7 {[%clk 01:23:21]} {[%emt 00:02:09]} 9. Bxf6
{[%clk 01:21:38]} {[%emt 00:04:04]} Bxf6 {[%clk 01:23:35]} {[%emt 00:00:16]} 10.
g3 {[%clk 01:22:03]} {[%emt 00:00:05]} Nc6 {[%clk 01:18:29]} {[%emt 00:05:36]}
11. Nd5 {[%clk 01:15:27]} {[%emt 00:07:06]} Rc8 {[%clk 01:15:34]} {[%emt
00:03:25]} 12. Qd2 {[%clk 01:13:36]} {[%emt 00:02:21]} O-O {[%clk 01:10:08]}
{[%emt 00:05:55]} 13. O-O-O {[%clk 01:10:50]} {[%emt 00:03:16]} a5 {[%clk
01:04:01]} {[%emt 00:06:38]} 14. Nc3 {[%clk 00:31:51]} {[%emt 00:39:29]} Nb4
{[%clk 00:58:52]} {[%emt 00:05:38]} 15. Kb1 {[%clk 00:26:17]} {[%emt 00:06:05]}
d5 {[%clk 00:42:41]} {[%emt 00:16:41]} 16. exd5 {[%clk 00:25:49]} {[%emt
00:00:58]} Bf5 {[%clk 00:43:02]} {[%emt 00:00:09]} 17. Bd3 {[%clk 00:23:15]}
{[%emt 00:03:04]} Bxd3 {[%clk 00:37:41]} {[%emt 00:05:50]} 18. cxd3 {[%clk
00:23:43]} {[%emt 00:00:03]} a4 {[%clk 00:32:20]} {[%emt 00:05:50]} 19. Nxa4
{[%clk 00:22:55]} {[%emt 00:01:18]} Nxd5 {[%clk 00:28:28]} {[%emt 00:04:22]} 20.
Rc1 {[%clk 00:18:57]} {[%emt 00:04:28]} Ra8 {[%clk 00:28:03]} {[%emt 00:00:55]}
21. Nc3 {[%clk 00:15:18]} {[%emt 00:04:09]} Nb4 {[%clk 00:25:47]} {[%emt
00:02:46]} 22. Rhd1 {[%clk 00:15:12]} {[%emt 00:00:36]} Be7 {[%clk 00:21:11]}
{[%emt 00:05:06]} 23. Qe3 {[%clk 00:12:26]} {[%emt 00:03:16]} Qd6 {[%clk
00:18:19]} {[%emt 00:03:21]} 24. a3 {[%clk 00:09:30]} {[%emt 00:03:26]} Nd5
{[%clk 00:16:14]} {[%emt 00:02:35]} 25. Nxd5 {[%clk 00:09:31]} {[%emt
00:00:29]} Qxd5 {[%clk 00:16:42]} {[%emt 00:00:02]} 26. d4 {[%clk 00:09:55]}
{[%emt 00:00:06]} e4 {[%clk 00:06:50]} {[%emt 00:10:22]} 27. Nc5 {[%clk
00:08:49]} {[%emt 00:01:36]} f5 {[%clk 00:06:42]} {[%emt 00:00:38]} 28. f3
{[%clk 00:08:02]} {[%emt 00:01:17]} b6 {[%clk 00:03:11]} {[%emt 00:04:02]} 29.
fxe4 {[%clk 00:07:38]} {[%emt 00:00:54]} Qf7 {[%clk 00:03:38]} {[%emt
00:00:03]} 30. Nb3 {[%clk 00:07:00]} {[%emt 00:01:08]} fxe4 {[%clk 00:03:30]}
{[%emt 00:00:38]} 31. d5 {[%clk 00:07:05]} {[%emt 00:00:25]} Bd6 {[%clk
00:03:13]} {[%emt 00:00:47]} 32. Qxe4 {[%clk 00:06:00]} {[%emt 00:01:35]} Rae8
{[%clk 00:03:20]} {[%emt 00:00:23]} 33. Qd3 {[%clk 00:05:22]} {[%emt 00:01:08]}
Qf2 {[%clk 00:02:31]} {[%emt 00:01:19]} 34. Nd4 {[%clk 00:03:54]} {[%emt
00:01:58]} Re3 {[%clk 00:02:07]} {[%emt 00:00:54]} 35. Qc2 {[%clk 00:03:27]}
{[%emt 00:00:57]} Rxg3 {[%clk 00:00:45]} {[%emt 00:01:52]} 36. Ne6 {[%clk
00:03:19]} {[%emt 00:00:38]} Qxc2+ {[%clk 00:00:45]} {[%emt 00:00:30]} 37. Rxc2
{[%clk 00:03:48]} {[%emt 00:00:01]} Re8 {[%clk 00:00:34]} {[%emt 00:00:41]} 38.
Rc6 {[%clk 00:04:00]} {[%emt 00:00:17]} Be5 {[%clk 00:00:43]} {[%emt 00:00:21]}
39. d6 {[%clk 00:03:40]} {[%emt 00:00:50]} Rb3 {[%clk 00:00:35]} {[%emt
00:00:38]} 40. d7 {[%clk 00:03:49]} {[%emt 00:00:22]} 1-0



[ePGN "0.1;DGT LiveChess/2.2.5"]